[Event "Late-Titled-Tuesday-Blitz-March-26-2024"]
[Site "Chess.com"]
[Date "2024.03.26"]
[Round "6"]
[White "Heydarli77"]
[Black "dasatcu90"]
[Result "1/2-1/2"]
[WhiteElo "2457"]
[BlackElo "2243"]
[TimeControl "180+1"]
[EndTime "15:10:39 PDT"]
[Termination "Game drawn by repetition"]

1. d4 {[%clk 0:02:54.6]} 1... d5 {[%clk 0:02:57.7]} 2. c4 {[%clk 0:02:54.2]}
2... c6 {[%clk 0:02:58.1]} 3. cxd5 {[%clk 0:02:53.3]} 3... cxd5 {[%clk 0:02:59]}
4. Nc3 {[%clk 0:02:53.8]} 4... Nf6 {[%clk 0:02:58.9]} 5. Bf4 {[%clk 0:02:53.9]}
5... a6 {[%clk 0:02:58]} 6. Nf3 {[%clk 0:02:54]} 6... Nc6 {[%clk 0:02:57.8]} 7.
e3 {[%clk 0:02:53.6]} 7... Bg4 {[%clk 0:02:57.2]} 8. Bd3 {[%clk 0:02:52.9]} 8...
Rc8 {[%clk 0:02:55.9]} 9. O-O {[%clk 0:02:52.1]} 9... e6 {[%clk 0:02:56]} 10.
Rc1 {[%clk 0:02:50.6]} 10... Bd6 {[%clk 0:02:55.3]} 11. Bg5 {[%clk 0:02:37]}
11... h6 {[%clk 0:02:41.4]} 12. Bh4 {[%clk 0:02:36.1]} 12... b5 {[%clk
0:01:57.8]} 13. h3 {[%clk 0:02:30.6]} 13... Bxf3 {[%clk 0:01:43]} 14. Qxf3
{[%clk 0:02:28.3]} 14... Be7 {[%clk 0:01:38.2]} 15. Nb1 {[%clk 0:02:04]} 15...
O-O {[%clk 0:01:32]} 16. Nd2 {[%clk 0:02:03.7]} 16... Na5 {[%clk 0:01:29.6]} 17.
Qe2 {[%clk 0:01:53.6]} 17... Nc4 {[%clk 0:01:29.1]} 18. b3 {[%clk 0:01:46.1]}
18... Nxd2 {[%clk 0:01:23.4]} 19. Qxd2 {[%clk 0:01:46.2]} 19... Ba3 {[%clk
0:01:23.7]} 20. Rc2 {[%clk 0:01:42.7]} 20... Qe7 {[%clk 0:01:15.8]} 21. f4
{[%clk 0:01:34]} 21... Bb4 {[%clk 0:01:11.7]} 22. Qc1 {[%clk 0:01:31]} 22... Ba3
{[%clk 0:01:08.8]} 23. Bxf6 {[%clk 0:01:26.7]} 23... gxf6 {[%clk 0:00:52.7]} 24.
Qd1 {[%clk 0:01:26.4]} 24... f5 {[%clk 0:00:50.4]} 25. Qh5 {[%clk 0:01:17.4]}
25... Qf6 {[%clk 0:00:47.3]} 26. Rff2 {[%clk 0:01:13.1]} 26... Kh8 {[%clk
0:00:45.6]} 27. Kh2 {[%clk 0:01:11.3]} 27... Bd6 {[%clk 0:00:40.7]} 28. g4
{[%clk 0:01:09.4]} 28... fxg4 {[%clk 0:00:36.2]} 29. hxg4 {[%clk 0:01:09.3]}
29... Rxc2 {[%clk 0:00:36.4]} 30. Rxc2 {[%clk 0:01:05.5]} 30... Bxf4+ {[%clk
0:00:20.8]} 31. exf4 {[%clk 0:01:02.3]} 31... Qxf4+ {[%clk 0:00:21.7]} 32. Kh1
{[%clk 0:00:54.8]} 32... Qf3+ {[%clk 0:00:21.5]} 33. Kg1 {[%clk 0:00:45.3]}
33... Qe3+ {[%clk 0:00:20.6]} 34. Rf2 {[%clk 0:00:42.4]} 34... Qxd3 {[%clk
0:00:20.3]} 35. Qxh6+ {[%clk 0:00:41.3]} 35... Kg8 {[%clk 0:00:18]} 36. Qg5+
{[%clk 0:00:30.8]} 36... Qg6 {[%clk 0:00:18.3]} 37. Qe5 {[%clk 0:00:29.2]} 37...
Rc8 {[%clk 0:00:17]} 38. Kh2 {[%clk 0:00:25.7]} 38... Rc3 {[%clk 0:00:14.8]} 39.
Qh5 {[%clk 0:00:20.3]} 39... Qxh5+ {[%clk 0:00:14.3]} 40. gxh5 {[%clk
0:00:20.8]} 40... Rd3 {[%clk 0:00:13.4]} 41. Rf4 {[%clk 0:00:20.2]} 41... Rd2+
{[%clk 0:00:13.6]} 42. Kg3 {[%clk 0:00:20.5]} 42... Rxa2 {[%clk 0:00:14.2]} 43.
Kh4 {[%clk 0:00:20.8]} 43... Rb2 {[%clk 0:00:14.7]} 44. Rf3 {[%clk 0:00:20.7]}
44... Rd2 {[%clk 0:00:14.3]} 45. Kg5 {[%clk 0:00:20.8]} 45... Rxd4 {[%clk
0:00:14.3]} 46. Kf6 {[%clk 0:00:21.1]} 46... Rg4 {[%clk 0:00:12.4]} 47. Rc3
{[%clk 0:00:20.8]} 47... Rf4+ {[%clk 0:00:11.1]} 48. Kg5 {[%clk 0:00:20.2]}
48... Rf5+ {[%clk 0:00:11]} 49. Kh6 {[%clk 0:00:20.2]} 49... Rf6+ {[%clk
0:00:11]} 50. Kg5 {[%clk 0:00:19.7]} 50... Rf5+ {[%clk 0:00:08.9]} 51. Kg4
{[%clk 0:00:20.1]} 51... Kg7 {[%clk 0:00:08.8]} 52. Rc6 {[%clk 0:00:18.7]} 52...
a5 {[%clk 0:00:08.6]} 53. Ra6 {[%clk 0:00:18.4]} 53... a4 {[%clk 0:00:08.3]} 54.
bxa4 {[%clk 0:00:18.7]} 54... bxa4 {[%clk 0:00:09.2]} 55. Rxa4 {[%clk
0:00:19.2]} 55... Re5 {[%clk 0:00:08.6]} 56. Ra7 {[%clk 0:00:16.4]} 56... Rf5
{[%clk 0:00:06.4]} 57. Rd7 {[%clk 0:00:15.4]} 57... Kh6 {[%clk 0:00:06.2]} 58.
Rd8 {[%clk 0:00:14.8]} 58... Rg5+ {[%clk 0:00:05.4]} 59. Kf4 {[%clk 0:00:14.5]}
59... Rxh5 {[%clk 0:00:05.6]} 60. Rh8+ {[%clk 0:00:13.7]} 60... Kg6 {[%clk
0:00:05.9]} 61. Rg8+ {[%clk 0:00:14]} 61... Kf6 {[%clk 0:00:06]} 62. Ra8 {[%clk
0:00:13.8]} 62... Rh4+ {[%clk 0:00:06.5]} 63. Kg3 {[%clk 0:00:12.8]} 63... Re4
{[%clk 0:00:07.4]} 64. Kf3 {[%clk 0:00:12.9]} 64... Ke5 {[%clk 0:00:07.8]} 65.
Ra7 {[%clk 0:00:12.8]} 65... f5 {[%clk 0:00:08.7]} 66. Ra3 {[%clk 0:00:12]}
66... Rf4+ {[%clk 0:00:09.2]} 67. Ke3 {[%clk 0:00:11.6]} 67... Rg4 {[%clk
0:00:10.1]} 68. Kf3 {[%clk 0:00:11.6]} 68... d4 {[%clk 0:00:09.7]} 69. Ra5+
{[%clk 0:00:11]} 69... Kf6 {[%clk 0:00:10.4]} 70. Ra6 {[%clk 0:00:11.2]} 70...
Kg5 {[%clk 0:00:10.5]} 71. Rxe6 {[%clk 0:00:10.5]} 71... d3 {[%clk 0:00:10.6]}
72. Rd6 {[%clk 0:00:10.2]} 72... Rh4 {[%clk 0:00:11.5]} 73. Kg3 {[%clk
0:00:09.5]} 73... Rg4+ {[%clk 0:00:11.5]} 74. Kf3 {[%clk 0:00:09.7]} 74... Rh4
{[%clk 0:00:11.9]} 75. Kg3 {[%clk 0:00:09.8]} 75... f4+ {[%clk 0:00:12.4]} 76.
Kg2 {[%clk 0:00:09.2]} 76... Kf5 {[%clk 0:00:11.9]} 77. Rxd3 {[%clk 0:00:09.1]}
77... Ke4 {[%clk 0:00:12.8]} 78. Rd8 {[%clk 0:00:08.7]} 78... Rg4+ {[%clk
0:00:12.7]} 79. Kf2 {[%clk 0:00:08.8]} 79... Rg7 {[%clk 0:00:12.7]} 80. Re8+
{[%clk 0:00:08.8]} 80... Kf5 {[%clk 0:00:12.9]} 81. Kf3 {[%clk 0:00:08.7]} 81...
Rf7 {[%clk 0:00:12.7]} 82. Re4 {[%clk 0:00:07.9]} 82... Kg5 {[%clk 0:00:12.7]}
83. Ra4 {[%clk 0:00:07.8]} 83... Rf5 {[%clk 0:00:13.2]} 84. Ra6 {[%clk
0:00:07.8]} 84... Rb5 {[%clk 0:00:13.6]} 85. Ra3 {[%clk 0:00:07.1]} 85... Rc5
{[%clk 0:00:13.1]} 86. Rd3 {[%clk 0:00:07.2]} 86... Kf5 {[%clk 0:00:12.8]} 87.
Rb3 {[%clk 0:00:06.8]} 87... Ke5 {[%clk 0:00:12.5]} 88. Ra3 {[%clk 0:00:06.5]}
88... Rb5 {[%clk 0:00:12.7]} 89. Rc3 {[%clk 0:00:06.4]} 89... Kd4 {[%clk
0:00:12.7]} 90. Ra3 {[%clk 0:00:06.4]} 90... Ke5 {[%clk 0:00:12.6]} 91. Ra4
{[%clk 0:00:06.7]} 91... Rb3+ {[%clk 0:00:11.6]} 92. Kf2 {[%clk 0:00:07.3]}
92... Kf5 {[%clk 0:00:11.4]} 93. Ra5+ {[%clk 0:00:07.6]} 93... Kg4 {[%clk
0:00:11.8]} 94. Ra8 {[%clk 0:00:07.8]} 94... Rb2+ {[%clk 0:00:12.1]} 95. Kf1
{[%clk 0:00:08.3]} 95... Kg3 {[%clk 0:00:11.1]} 96. Rg8+ {[%clk 0:00:07.9]}
96... Kf3 {[%clk 0:00:11.5]} 97. Kg1 {[%clk 0:00:08.3]} 97... Rb1+ {[%clk
0:00:11.9]} 98. Kh2 {[%clk 0:00:08.6]} 98... Kf2 {[%clk 0:00:12.5]} 99. Ra8
{[%clk 0:00:07.8]} 99... f3 {[%clk 0:00:13.1]} 100. Ra2+ {[%clk 0:00:07.5]}
100... Ke3 {[%clk 0:00:13.3]} 101. Kg3 {[%clk 0:00:07.3]} 101... Rg1+ {[%clk
0:00:12.8]} 102. Kh2 {[%clk 0:00:07]} 102... Rg7 {[%clk 0:00:13.5]} 103. Ra3+
{[%clk 0:00:06.7]} 103... Kf4 {[%clk 0:00:13.5]} 104. Ra4+ {[%clk 0:00:07]}
104... Ke5 {[%clk 0:00:12.7]} 105. Ra5+ {[%clk 0:00:07]} 105... Ke4 {[%clk
0:00:13.2]} 106. Ra4+ {[%clk 0:00:07.3]} 106... Ke3 {[%clk 0:00:13.5]} 107. Ra3+
{[%clk 0:00:07.6]} 107... Ke2 {[%clk 0:00:14.1]} 108. Ra2+ {[%clk 0:00:07.7]}
108... Kd1 {[%clk 0:00:13.2]} 109. Ra1+ {[%clk 0:00:07.5]} 109... Kc2 {[%clk
0:00:13.5]} 110. Rf1 {[%clk 0:00:06.8]} 110... Rg2+ {[%clk 0:00:11.8]} 111. Kh1
{[%clk 0:00:06.5]} 111... Rg3 {[%clk 0:00:11.8]} 112. Kh2 {[%clk 0:00:07]}
112... Rg2+ {[%clk 0:00:12.4]} 113. Kh1 {[%clk 0:00:07.3]} 113... Rg3 {[%clk
0:00:12.5]} 114. Kh2 {[%clk 0:00:07.2]} 114... Rg2+ {[%clk 0:00:13]} 1/2-1/2

[Event "Late-Titled-Tuesday-Blitz-March-26-2024"]
[Site "Chess.com"]
[Date "2024.03.26"]
[Round "7"]
[White "BardArtem"]
[Black "Beca95"]
[Result "1/2-1/2"]
[WhiteElo "2839"]
[BlackElo "2954"]
[TimeControl "180+1"]
[EndTime "15:11:59 PDT"]
[Termination "Game drawn by repetition"]

1. e4 {[%clk 0:03:00.9]} 1... e5 {[%clk 0:02:59.6]} 2. d4 {[%clk 0:03:00.3]}
2... exd4 {[%clk 0:02:58]} 3. Qxd4 {[%clk 0:03:01.2]} 3... Nc6 {[%clk
0:02:57.5]} 4. Qd3 {[%clk 0:03:01.2]} 4... Nf6 {[%clk 0:02:56]} 5. Nc3 {[%clk
0:03:01.3]} 5... d5 {[%clk 0:02:56.1]} 6. Bf4 {[%clk 0:03:01]} 6... d4 {[%clk
0:02:55]} 7. Nb5 {[%clk 0:02:59.9]} 7... Bb4+ {[%clk 0:02:54.8]} 8. c3 {[%clk
0:02:59.6]} 8... dxc3 {[%clk 0:02:52.8]} 9. Qxd8+ {[%clk 0:03:00.5]} 9... Kxd8
{[%clk 0:02:51.8]} 10. bxc3 {[%clk 0:03:00.8]} 10... Ba5 {[%clk 0:02:51.5]} 11.
O-O-O+ {[%clk 0:03:00.6]} 11... Bd7 {[%clk 0:02:51.7]} 12. f3 {[%clk 0:02:52]}
12... a6 {[%clk 0:02:51.4]} 13. Nd4 {[%clk 0:02:52]} 13... Nxd4 {[%clk
0:02:51.4]} 14. cxd4 {[%clk 0:02:52.9]} 14... Ba4 {[%clk 0:02:51.4]} 15. Rd3
{[%clk 0:02:53.2]} 15... Bb5 {[%clk 0:02:51.6]} 16. Rd1 {[%clk 0:02:53.5]} 16...
Ba4 {[%clk 0:02:52.1]} 17. Rd3 {[%clk 0:02:53.9]} 17... Bb5 {[%clk 0:02:52.4]}
18. Rd1 {[%clk 0:02:54.2]} 18... Ba4 {[%clk 0:02:52.9]} 1/2-1/2

[Event "Late-Titled-Tuesday-Blitz-March-26-2024"]
[Site "Chess.com"]
[Date "2024.03.26"]
[Round "7"]
[White "N_Mullodzhanov"]
[Black "1g60-1"]
[Result "1-0"]
[WhiteElo "2552"]
[BlackElo "2397"]
[TimeControl "180+1"]
[EndTime "15:13:20 PDT"]
[Termination "N_Mullodzhanov won by resignation"]

1. e4 {[%clk 0:03:00.9]} 1... e6 {[%clk 0:03:00.3]} 2. d4 {[%clk 0:03:00.4]}
2... d5 {[%clk 0:03:00.5]} 3. Nc3 {[%clk 0:03:00.5]} 3... Bb4 {[%clk 0:03:00.2]}
4. Bd3 {[%clk 0:02:58.5]} 4... dxe4 {[%clk 0:02:53.9]} 5. Bxe4 {[%clk
0:02:58.2]} 5... Nf6 {[%clk 0:02:54.5]} 6. Bf3 {[%clk 0:02:58.5]} 6... c6 {[%clk
0:02:48.5]} 7. Ne2 {[%clk 0:02:57.9]} 7... O-O {[%clk 0:02:46.8]} 8. O-O {[%clk
0:02:56.5]} 8... Nbd7 {[%clk 0:02:47.1]} 9. Bf4 {[%clk 0:02:54.8]} 9... Qe7
{[%clk 0:02:43.7]} 10. Qd3 {[%clk 0:02:48.6]} 10... h6 {[%clk 0:02:41.3]} 11.
Rfe1 {[%clk 0:02:45.6]} 11... Bd6 {[%clk 0:02:41.1]} 12. Rad1 {[%clk 0:02:44.3]}
12... Bxf4 {[%clk 0:02:39.5]} 13. Nxf4 {[%clk 0:02:44.4]} 13... Qd6 {[%clk
0:02:40.2]} 14. g3 {[%clk 0:02:42.6]} 14... b6 {[%clk 0:02:31.4]} 15. Nb5 {[%clk
0:02:34.3]} 15... Qb4 {[%clk 0:02:21.6]} 16. Bxc6 {[%clk 0:02:29.8]} 16... Rb8
{[%clk 0:02:21.7]} 17. c3 {[%clk 0:02:24.8]} 17... Qxb2 {[%clk 0:02:17]} 18. Re2
{[%clk 0:02:18.7]} 1-0

[Event "Late-Titled-Tuesday-Blitz-March-26-2024"]
[Site "Chess.com"]
[Date "2024.03.26"]
[Round "7"]
[White "Zampronha1971"]
[Black "xakevicius91"]
[Result "0-1"]
[WhiteElo "2381"]
[BlackElo "2544"]
[TimeControl "180+1"]
[EndTime "15:14:03 PDT"]
[Termination "xakevicius91 won by resignation"]

1. e4 {[%clk 0:03:00.9]} 1... c5 {[%clk 0:02:58.4]} 2. Nf3 {[%clk 0:03:00.5]}
2... e6 {[%clk 0:02:58.2]} 3. d4 {[%clk 0:03:01.1]} 3... cxd4 {[%clk 0:02:59.1]}
4. Nxd4 {[%clk 0:03:01.4]} 4... Nc6 {[%clk 0:02:59.8]} 5. Nc3 {[%clk 0:03:01.5]}
5... Qc7 {[%clk 0:03:00.4]} 6. Be2 {[%clk 0:02:59.5]} 6... a6 {[%clk 0:02:58.9]}
7. O-O {[%clk 0:02:58.9]} 7... Nf6 {[%clk 0:02:58.8]} 8. Be3 {[%clk 0:02:58.3]}
8... Be7 {[%clk 0:02:58.6]} 9. f4 {[%clk 0:02:47.3]} 9... d6 {[%clk 0:02:57.9]}
10. Nxc6 {[%clk 0:02:43.9]} 10... bxc6 {[%clk 0:02:57.6]} 11. Bf3 {[%clk
0:02:43.3]} 11... Bd7 {[%clk 0:02:57.8]} 12. Qd2 {[%clk 0:02:35.2]} 12... e5
{[%clk 0:02:54.5]} 13. fxe5 {[%clk 0:02:14.7]} 13... dxe5 {[%clk 0:02:53.4]} 14.
Na4 {[%clk 0:02:13.7]} 14... c5 {[%clk 0:02:49.1]} 15. Nxc5 {[%clk 0:02:03.8]}
15... Bxc5 {[%clk 0:02:45.9]} 16. Bxc5 {[%clk 0:01:47.2]} 16... Qxc5+ {[%clk
0:02:46.8]} 17. Kh1 {[%clk 0:01:47.5]} 17... Be6 {[%clk 0:02:40.3]} 18. b4
{[%clk 0:01:45.8]} 18... Qe7 {[%clk 0:02:35.8]} 19. Qc3 {[%clk 0:01:45.2]} 19...
O-O {[%clk 0:02:31.3]} 20. Qxe5 {[%clk 0:01:44.7]} 20... Qxb4 {[%clk 0:02:29.8]}
21. Qf4 {[%clk 0:01:39.7]} 21... Rad8 {[%clk 0:02:22.7]} 22. e5 {[%clk
0:01:39.9]} 22... Qxf4 {[%clk 0:02:11.5]} 0-1

[Event "Late-Titled-Tuesday-Blitz-March-26-2024"]
[Site "Chess.com"]
[Date "2024.03.26"]
[Round "7"]
[White "Agibileg"]
[Black "Payyappat"]
[Result "0-1"]
[WhiteElo "2741"]
[BlackElo "2537"]
[TimeControl "180+1"]
[EndTime "15:14:12 PDT"]
[Termination "Payyappat won by resignation"]

1. d4 {[%clk 0:03:00.9]} 1... Nf6 {[%clk 0:02:55.8]} 2. c4 {[%clk 0:03:01.2]}
2... c5 {[%clk 0:02:56.3]} 3. d5 {[%clk 0:03:01.4]} 3... e6 {[%clk 0:02:57.2]}
4. Nc3 {[%clk 0:03:01]} 4... exd5 {[%clk 0:02:58.1]} 5. cxd5 {[%clk 0:03:01.9]}
5... d6 {[%clk 0:02:58.7]} 6. e4 {[%clk 0:03:02.5]} 6... g6 {[%clk 0:02:59.3]}
7. Bd3 {[%clk 0:03:03.1]} 7... Bg7 {[%clk 0:02:59.3]} 8. h3 {[%clk 0:03:03.8]}
8... O-O {[%clk 0:02:58.8]} 9. Nf3 {[%clk 0:03:04.4]} 9... b5 {[%clk 0:02:56.7]}
10. Nxb5 {[%clk 0:03:01.6]} 10... Nxe4 {[%clk 0:02:54]} 11. Bxe4 {[%clk
0:03:01.4]} 11... Re8 {[%clk 0:02:53.9]} 12. Ng5 {[%clk 0:03:01.4]} 12... Bf5
{[%clk 0:02:37.4]} 13. f3 {[%clk 0:03:01.2]} 13... h6 {[%clk 0:02:31.5]} 14.
Nxf7 {[%clk 0:02:56.7]} 14... Qh4+ {[%clk 0:01:53.7]} 15. Kf1 {[%clk 0:02:45.9]}
15... Bxe4 {[%clk 0:01:52.6]} 16. Nfxd6 {[%clk 0:02:39.9]} 16... Bd3+ {[%clk
0:01:48.3]} 17. Kg1 {[%clk 0:02:35.2]} 17... Re1+ {[%clk 0:01:41.8]} 18. Qxe1
{[%clk 0:02:34.7]} 18... Qxe1+ {[%clk 0:01:42.7]} 19. Kh2 {[%clk 0:02:35]} 19...
Qa5 {[%clk 0:01:38.2]} 20. a4 {[%clk 0:02:26.2]} 20... a6 {[%clk 0:01:33.9]} 21.
Nb7 {[%clk 0:02:24.1]} 21... Qb6 {[%clk 0:01:32.1]} 22. N5d6 {[%clk 0:02:23.3]}
22... Be5+ {[%clk 0:01:29.8]} 23. f4 {[%clk 0:02:23.4]} 23... Bxd6 {[%clk
0:01:29.5]} 24. Nxd6 {[%clk 0:02:24.3]} 24... Qxd6 {[%clk 0:01:30.4]} 0-1

[Event "Late-Titled-Tuesday-Blitz-March-26-2024"]
[Site "Chess.com"]
[Date "2024.03.26"]
[Round "7"]
[White "CaspiIsrael"]
[Black "DinaBelenkaya"]
[Result "1-0"]
[WhiteElo "2665"]
[BlackElo "2493"]
[TimeControl "180+1"]
[EndTime "15:14:45 PDT"]
[Termination "CaspiIsrael won by resignation"]

1. e4 {[%clk 0:03:00.9]} 1... c6 {[%clk 0:02:59.1]} 2. d3 {[%clk 0:02:58.5]}
2... d5 {[%clk 0:03:00]} 3. Nd2 {[%clk 0:02:58.8]} 3... g6 {[%clk 0:02:57.5]} 4.
Ngf3 {[%clk 0:02:58.3]} 4... Bg7 {[%clk 0:02:58.1]} 5. g3 {[%clk 0:02:58.4]}
5... e5 {[%clk 0:02:58.3]} 6. Bg2 {[%clk 0:02:58.8]} 6... Ne7 {[%clk 0:02:57.3]}
7. O-O {[%clk 0:02:59.4]} 7... O-O {[%clk 0:02:57.6]} 8. b4 {[%clk 0:03:00]}
8... a6 {[%clk 0:02:48.1]} 9. Bb2 {[%clk 0:02:59.3]} 9... Nd7 {[%clk 0:02:47.3]}
10. a4 {[%clk 0:02:56.4]} 10... b5 {[%clk 0:02:35.7]} 11. axb5 {[%clk
0:02:53.3]} 11... axb5 {[%clk 0:02:35.9]} 12. Rxa8 {[%clk 0:02:52.4]} 12... Nb6
{[%clk 0:02:32.7]} 13. Ra2 {[%clk 0:02:49.1]} 13... d4 {[%clk 0:02:30.7]} 14.
Nb3 {[%clk 0:02:47.3]} 14... Be6 {[%clk 0:02:30.8]} 15. Ng5 {[%clk 0:02:44.5]}
15... Bc8 {[%clk 0:02:31]} 16. f4 {[%clk 0:02:44.6]} 16... f6 {[%clk 0:02:28.4]}
17. Nf3 {[%clk 0:02:43.2]} 17... Be6 {[%clk 0:02:28.3]} 18. fxe5 {[%clk
0:02:42.2]} 18... fxe5 {[%clk 0:02:28.7]} 19. Ng5 {[%clk 0:02:42.5]} 19... Bc8
{[%clk 0:02:26.7]} 20. Bh3 {[%clk 0:02:42.4]} 20... Nf5 {[%clk 0:02:21.8]} 21.
Bc1 {[%clk 0:02:37.3]} 21... h6 {[%clk 0:02:14.1]} 22. exf5 {[%clk 0:02:30.1]}
22... hxg5 {[%clk 0:02:12.3]} 23. Bg2 {[%clk 0:02:15.8]} 23... gxf5 {[%clk
0:02:06.2]} 24. Qh5 {[%clk 0:02:14.3]} 24... f4 {[%clk 0:02:00.5]} 25. Be4
{[%clk 0:02:13.3]} 25... Bf5 {[%clk 0:01:57.5]} 26. Bxf5 {[%clk 0:02:10.4]}
26... Rxf5 {[%clk 0:01:58.4]} 27. Ra7 {[%clk 0:02:09.2]} 27... Nd5 {[%clk
0:01:43.6]} 28. Nc5 {[%clk 0:02:06]} 28... Qc8 {[%clk 0:01:38.9]} 29. Qg6 {[%clk
0:02:03.2]} 1-0

[Event "Late-Titled-Tuesday-Blitz-March-26-2024"]
[Site "Chess.com"]
[Date "2024.03.26"]
[Round "7"]
[White "HanSchut"]
[Black "CFalcons8"]
[Result "0-1"]
[WhiteElo "2279"]
[BlackElo "2405"]
[TimeControl "180+1"]
[EndTime "15:15:05 PDT"]
[Termination "CFalcons8 won by resignation"]

1. e4 {[%clk 0:03:00.9]} 1... e6 {[%clk 0:02:59.4]} 2. d4 {[%clk 0:03:00.6]}
2... d5 {[%clk 0:03:00.3]} 3. e5 {[%clk 0:03:01.3]} 3... c5 {[%clk 0:03:00.5]}
4. c3 {[%clk 0:03:02]} 4... Nc6 {[%clk 0:03:00.1]} 5. Nf3 {[%clk 0:03:02]} 5...
Qb6 {[%clk 0:03:00.6]} 6. Bd3 {[%clk 0:03:02.6]} 6... Bd7 {[%clk 0:02:59.9]} 7.
dxc5 {[%clk 0:03:01.5]} 7... Bxc5 {[%clk 0:03:00.8]} 8. b4 {[%clk 0:02:59.6]}
8... Bxf2+ {[%clk 0:03:00.9]} 9. Ke2 {[%clk 0:02:59.3]} 9... d4 {[%clk 0:02:43]}
10. Rf1 {[%clk 0:02:55.6]} 10... Be3 {[%clk 0:02:40]} 11. Bxe3 {[%clk
0:02:37.4]} 11... dxe3 {[%clk 0:02:40.9]} 12. Na3 {[%clk 0:02:22.9]} 12... O-O-O
{[%clk 0:02:08.5]} 13. Nc4 {[%clk 0:02:17.9]} 13... Qc7 {[%clk 0:02:08.2]} 14.
Nd6+ {[%clk 0:02:15]} 14... Kb8 {[%clk 0:02:06.3]} 15. Nxf7 {[%clk 0:02:15.7]}
15... Nge7 {[%clk 0:02:06.6]} 16. Nxh8 {[%clk 0:02:09.8]} 16... Rxh8 {[%clk
0:02:06.6]} 17. Kxe3 {[%clk 0:01:52.5]} 17... Nd5+ {[%clk 0:02:06.6]} 18. Kd2
{[%clk 0:01:48.4]} 18... Nxe5 {[%clk 0:02:06.4]} 19. Nxe5 {[%clk 0:01:39.6]}
19... Qxc3+ {[%clk 0:02:06.1]} 20. Ke2 {[%clk 0:01:27.7]} 20... Qxe5+ {[%clk
0:02:07]} 21. Kd2 {[%clk 0:01:13.1]} 21... Qe3+ {[%clk 0:01:58.8]} 22. Kc2
{[%clk 0:00:52.4]} 22... Ba4+ {[%clk 0:01:58.4]} 0-1

[Event "Late-Titled-Tuesday-Blitz-March-26-2024"]
[Site "Chess.com"]
[Date "2024.03.26"]
[Round "7"]
[White "GiorgianBarbosa"]
[Black "publicaccountcze"]
[Result "0-1"]
[WhiteElo "2516"]
[BlackElo "2287"]
[TimeControl "180+1"]
[EndTime "15:15:29 PDT"]
[Termination "publicaccountcze won by resignation"]

1. b3 {[%clk 0:02:59.7]} 1... e5 {[%clk 0:02:52.9]} 2. Bb2 {[%clk 0:03:00.6]}
2... Nc6 {[%clk 0:02:51.8]} 3. Nf3 {[%clk 0:02:38.9]} 3... e4 {[%clk 0:02:41.2]}
4. Nd4 {[%clk 0:02:28]} 4... Nf6 {[%clk 0:02:39.9]} 5. e3 {[%clk 0:02:18]} 5...
Nxd4 {[%clk 0:02:22.8]} 6. Bxd4 {[%clk 0:02:16.7]} 6... c5 {[%clk 0:02:23]} 7.
Bb2 {[%clk 0:02:16.5]} 7... d5 {[%clk 0:02:23.4]} 8. Bb5+ {[%clk 0:02:16.2]}
8... Bd7 {[%clk 0:02:22.8]} 9. Bxf6 {[%clk 0:02:15.9]} 9... Qxf6 {[%clk
0:02:16.2]} 10. Bxd7+ {[%clk 0:02:16.8]} 10... Kxd7 {[%clk 0:02:16.9]} 11. Nc3
{[%clk 0:02:16.4]} 11... Kc6 {[%clk 0:02:12.6]} 12. Qe2 {[%clk 0:02:15.8]} 12...
a6 {[%clk 0:02:13]} 13. O-O-O {[%clk 0:02:15.6]} 13... Bd6 {[%clk 0:02:10.9]}
14. d4 {[%clk 0:02:14.3]} 14... Rhd8 {[%clk 0:02:03.5]} 15. Kb1 {[%clk
0:01:45.3]} 15... Rac8 {[%clk 0:02:01.2]} 16. Rd2 {[%clk 0:01:42.4]} 16... cxd4
{[%clk 0:01:58.8]} 17. exd4 {[%clk 0:01:27]} 17... Kb6 {[%clk 0:01:57.5]} 18.
Na4+ {[%clk 0:01:24.4]} 18... Ka7 {[%clk 0:01:56.8]} 19. Rhd1 {[%clk 0:01:23.4]}
19... Bf4 {[%clk 0:01:55.9]} 20. Nc5 {[%clk 0:01:19]} 20... Bxd2 {[%clk
0:01:53.8]} 21. Rxd2 {[%clk 0:01:17]} 21... Qg5 {[%clk 0:01:44.7]} 22. g3 {[%clk
0:01:12.2]} 22... Qe7 {[%clk 0:01:45.4]} 23. Kb2 {[%clk 0:01:09]} 23... f5
{[%clk 0:01:44.2]} 24. c3 {[%clk 0:01:06.1]} 24... g5 {[%clk 0:01:43.5]} 25. Rc2
{[%clk 0:01:04.8]} 25... f4 {[%clk 0:01:43.5]} 26. c4 {[%clk 0:01:04.8]} 26...
Qf6 {[%clk 0:01:42]} 27. Rd2 {[%clk 0:00:59.2]} 27... Rxc5 {[%clk 0:01:41.9]}
0-1

[Event "Late-Titled-Tuesday-Blitz-March-26-2024"]
[Site "Chess.com"]
[Date "2024.03.26"]
[Round "7"]
[White "Oleksandr_Bortnyk"]
[Black "ChessSwole"]
[Result "1-0"]
[WhiteElo "3037"]
[BlackElo "2676"]
[TimeControl "180+1"]
[EndTime "15:15:40 PDT"]
[Termination "Oleksandr_Bortnyk won by resignation"]

1. Nh3 {[%clk 0:02:57.2]} 1... Nh6 {[%clk 0:02:59.2]} 2. f3 {[%clk 0:02:57.1]}
2... f6 {[%clk 0:02:58.7]} 3. Nf2 {[%clk 0:02:56.8]} 3... Nf7 {[%clk 0:02:59.4]}
4. Na3 {[%clk 0:02:56.7]} 4... Na6 {[%clk 0:02:59.3]} 5. c3 {[%clk 0:02:57]}
5... c6 {[%clk 0:02:59.6]} 6. Nc2 {[%clk 0:02:57.9]} 6... Nc7 {[%clk 0:03:00.2]}
7. d4 {[%clk 0:02:56.5]} 7... d5 {[%clk 0:03:00.4]} 8. e4 {[%clk 0:02:52]} 8...
e5 {[%clk 0:03:00.4]} 9. Be3 {[%clk 0:02:52.8]} 9... Be6 {[%clk 0:02:59.6]} 10.
Bd3 {[%clk 0:02:53.2]} 10... Bd6 {[%clk 0:02:59.7]} 11. h4 {[%clk 0:02:53]}
11... h5 {[%clk 0:02:59.5]} 12. Qe2 {[%clk 0:02:41.4]} 12... Qe7 {[%clk
0:02:59.5]} 13. O-O-O {[%clk 0:02:41.7]} 13... O-O-O {[%clk 0:03:00]} 14. dxe5
{[%clk 0:02:40.9]} 14... Nxe5 {[%clk 0:02:57.7]} 15. Bxa7 {[%clk 0:02:40.2]}
15... dxe4 {[%clk 0:02:54]} 16. Nxe4 {[%clk 0:02:20.6]} 16... Bxa2 {[%clk
0:02:48]} 17. Nxd6+ {[%clk 0:02:16.5]} 17... Rxd6 {[%clk 0:02:40.3]} 18. Bf5+
{[%clk 0:02:16.5]} 18... Be6 {[%clk 0:02:39.9]} 19. Rxd6 {[%clk 0:02:02.8]}
19... Qxd6 {[%clk 0:02:38.4]} 20. Rd1 {[%clk 0:02:03.4]} 20... Qe7 {[%clk
0:02:30.7]} 21. Nd4 {[%clk 0:01:51.2]} 21... Re8 {[%clk 0:01:31.2]} 22. f4
{[%clk 0:01:41.5]} 22... Ng4 {[%clk 0:01:27.1]} 23. Nxe6 {[%clk 0:01:13.5]}
23... Nxe6 {[%clk 0:01:26.5]} 24. Bb6 {[%clk 0:01:13.3]} 1-0